[Event "58th Akiba Rubinstein A 2022"]
[Site "Polanica-Zdroj"]
[Date "2022.08.21"]
[Round "9.12"]
[White "Paszkowski, Krystian"]
[Black "Kasprzak, Lukasz"]
[Result "1-0"]
[ECO "B40"]
[WhiteElo "1988"]
[BlackElo "1938"]
[Annotator "NA RC"]
[PlyCount "73"]
[EventDate "2022.08.13"]
[EventCountry "POL"]
[SourceTitle "playchess.com"]
[Source "ChessBase"]
[SourceQuality "1"]
[TimeControl "40/5400+30:1800+30"]

1. e4 {[%emt 0:00:03]} c5 {[%emt 0:04:26]} 2. Nf3 {[%emt 0:00:13]} e6 {[%emt 0:04:43]} 3. g3 {[%emt 0:00:09]} Nc6 {[%emt 0:01:55]} 4. Bg2 {[%emt 0:00:17]} g6 {[%emt 0:03:26]} 5. d4 {[%emt 0:16:39]} cxd4 {[%emt 0:01:08]} 6. Nxd4 $14 {[%emt 0:00:07]} Qb6 {[%emt 0:08:03]} 7. Nb3 {[%emt 0:02:57]} Bg7 {[%emt 0:03:24]} 8. O-O {[%emt 0:02:36]} Nge7 {[%emt 0:01:22]} 9. c4 {[%emt 0:07:08]} O-O {[%emt 0:03:08]} 10. Be3 {[%emt 0:16:27]} Qa6 {[%emt 0:07:29]} 11. Qc2 {[%emt 0:14:55]} Rd8 {[%emt 0:12:11]} 12. c5 {[%emt 0:09:54]} Nb4 {[%emt 0:19:08]} 13. Qd2 {[%emt 0:02:54]} Nec6 {[%emt 0:02:02]} 14. Rd1 {[%emt 0:03:19]} b6 {[%emt 0:05:32]} 15. Nc3 {[%emt 0:04:19]} Ne5 {[%emt 0:02:51]} 16. a3 {[%emt 0:05:45]} Nbc6 {[%emt 0:02:57]} 17. Bh6 {[%emt 0:04:29]} Bxh6 {[%emt 0:07:09]} 18. Qxh6 {[%emt 0:00:02]} Qc4 {[%emt 0:00:29]} 19. f4 {[%emt 0:05:13]} Qxb3 {[%emt 0:04:05]} 20. fxe5 {[%emt 0:00:12]} Qxb2 {[%emt 0:01:16]} 21. Rac1 {[%emt 0:01:29]} Ba6 {[%emt 0:01:01]} 22. Bf1 {[%emt 0:00:32]} Qxa3 {[%emt 0:01:48]} 23. Bxa6 {[%emt 0:00:41]} Qxa6 {[%emt 0:00:07]} 24. Rf1 {[%emt 0:00:19]} Nxe5 {[%emt 0:00:50]} 25. Qf4 {[%emt 0:00:40]} d6 {[%emt 0:00:52]} 26. cxd6 {[%emt 0:00:49]} Qa5 {[%emt 0:00:02]} 27. Nd5 {[%emt 0:00:38]} exd5 {[%emt 0:00:32]} 28. Qxe5 {[%emt 0:00:07]} dxe4 {[%emt 0:00:31]} 29. Qxe4 {[%emt 0:00:18]} Rf8 {[%emt 0:01:13]} 30. Rc7 {[%emt 0:00:46]} Rad8 {[%emt 0:01:00]} 31. Qc4 {[%emt 0:01:29]} Rxd6 {[%emt 0:00:44]} 32. Rcxf7 Rfd8 {[%emt 0:00:31]} 33. Rf8+ {[%emt 0:01:01]} Kg7 {[%emt 0:00:10]} 34. R1f7+ {[%emt 0:00:31]} Kh6 {[%emt 0:00:08]} 35. Rxh7+ {[%emt 0:00:29]} Kxh7 {[%emt 0:00:29]} 36. Qg8+ {[%emt 0:00:06]} Kh6 {[%emt 0:00:07]} 37. Qh8+ {[%emt 0:00:04]} 1-0

[Event "58th Akiba Rubinstein A 2022"]
[Site "Polanica-Zdroj"]
[Date "2022.08.21"]
[Round "9.13"]
[White "Iwanczuk, Krzysztof"]
[Black "Nowak, Filip"]
[Result "0-1"]
[ECO "D70"]
[WhiteElo "1947"]
[BlackElo "1957"]
[Annotator "NA RC"]
[PlyCount "54"]
[EventDate "2022.08.13"]
[EventCountry "POL"]
[SourceTitle "playchess.com"]
[Source "ChessBase"]
[SourceQuality "1"]
[TimeControl "40/5400+30:1800+30"]

1. d4 {[%emt 0:00:03]} d5 {[%emt 0:00:05]} 2. c4 {[%emt 0:00:06]} c6 {[%emt 0:00:06]} 3. Nf3 {[%emt 0:00:06]} Nf6 {[%emt 0:00:05]} 4. Nbd2 {[%emt 0:00:08]} e6 {[%emt 0:00:25]} 5. Qc2 {[%emt 0:00:12]} Nbd7 {[%emt 0:00:15]} 6. e4 {[%emt 0:00:10]} dxe4 {[%emt 0:00:45]} 7. Nxe4 {[%emt 0:00:05]} Nxe4 {[%emt 0:00:25]} 8. Qxe4 {[%emt 0:00:05]} Nf6 {[%emt 0:00:21]} 9. Qc2 {[%emt 0:00:09]} c5 {[%emt 0:02:55]} 10. Be3 {[%emt 0:00:11]} cxd4 {[%emt 0:01:30]} 11. O-O-O {[%emt 0:00:08]} Qa5 {[%emt 0:07:30]} 12. Nxd4 {[%emt 0:00:29]} Be7 {[%emt 0:01:11]} 13. Kb1 {[%emt 0:06:24]} O-O {[%emt 0:06:20]} 14. Bd3 {[%emt 0:03:16]} Bd7 $14 {[%emt 0:08:01]} 15. h4 Rfc8 {[%emt 0:03:33]} 16. Qe2 {[%emt 0:08:36]} a6 {[%emt 0:19:24]} 17. g4 {[%emt 0:06:13]} b5 {[%emt 0:02:38]} 18. g5 {[%emt 0:10:24]} bxc4 {[%emt 0:03:07]} 19. Bxc4 {[%emt 0:00:19]} Nd5 {[%emt 0:01:50]} 20. Nb3 {[%emt 0:05:01]} Qb4 {[%emt 0:06:11]} 21. Rd4 {[%emt 0:07:26]} Bc5 {[%emt 0:05:50]} 22. Nxc5 {[%emt 0:09:55]} Nc3+ {[%emt 0:01:12]} 23. Ka1 {[%emt 0:00:07]} Nxe2 {[%emt 0:00:18]} 24. Bxe2 {[%emt 0:01:51]} Qxc5 {[%emt 0:01:13]} 25. Rxd7 {[%emt 0:00:05]} Qc2 {[%emt 0:01:03]} 26. Bf3 {[%emt 0:01:36]} Rab8 {[%emt 0:00:08]} 27. Rb1 {[%emt 0:00:11]} a5 {[%emt 0:01:47]} 0-1

[Event "58th Akiba Rubinstein A 2022"]
[Site "Polanica-Zdroj"]
[Date "2022.08.21"]
[Round "9.14"]
[White "Antoniewicz, Jakub"]
[Black "Skrzyczek, Tomasz"]
[Result "1-0"]
[ECO "B30"]
[WhiteElo "1931"]
[BlackElo "1909"]
[Annotator "NA RC"]
[PlyCount "82"]
[EventDate "2022.08.13"]
[EventCountry "POL"]
[SourceTitle "playchess.com"]
[Source "ChessBase"]
[SourceQuality "1"]
[TimeControl "40/5400+30:1800+30"]

1. e4 {[%emt 0:01:36]} c5 {[%emt 0:00:37]} 2. Nf3 {[%emt 0:00:05]} Nc6 {[%emt 0:00:02]} 3. c4 {[%emt 0:00:06]} e5 {[%emt 0:01:54]} 4. g3 {[%emt 0:02:43]} d6 {[%emt 0:02:31]} 5. Bg2 {[%emt 0:00:08]} g6 {[%emt 0:07:28]} 6. O-O {[%emt 0:01:46]} Bg7 {[%emt 0:00:07]} 7. Nc3 {[%emt 0:00:21]} Nge7 {[%emt 0:00:07]} 8. d3 {[%emt 0:00:38]} O-O {[%emt 0:01:15]} 9. Nh4 {[%emt 0:04:16]} a6 {[%emt 0:03:33]} 10. f4 {[%emt 0:01:46]} exf4 {[%emt 0:01:03]} 11. Bxf4 {[%emt 0:01:55]} Rb8 {[%emt 0:03:38]} 12. a4 {[%emt 0:05:15]} Nd4 {[%emt 0:09:18]} 13. Rb1 {[%emt 0:21:09]} b5 {[%emt 0:03:21]} 14. axb5 {[%emt 0:00:21]} axb5 {[%emt 0:00:05]} 15. b3 {[%emt 0:00:13]} b4 {[%emt 0:09:12]} 16. Ne2 {[%emt 0:02:14]} Bg4 {[%emt 0:04:38]} 17. Bf3 {[%emt 0:04:37]} Bh3 {[%emt 0:08:06]} 18. Bg2 {[%emt 0:00:11]} Bg4 {[%emt 0:00:05]} 19. Bf3 {[%emt 0:00:04]} Bh3 {[%emt 0:06:20]} 20. Bg2 {[%emt 0:00:14]} Bxg2 {[%emt 0:00:46]} 21. Kxg2 {[%emt 0:02:43]} Nec6 {[%emt 0:00:38]} 22. Nf3 {[%emt 0:01:05]} Ra8 {[%emt 0:05:07]} 23. Nexd4 {[%emt 0:04:25]} Nxd4 {[%emt 0:00:40]} 24. Be3 {[%emt 0:08:28]} Ra2+ {[%emt 0:03:05]} 25. Rf2 {[%emt 0:01:04]} Rxf2+ {[%emt 0:00:45]} 26. Bxf2 {[%emt 0:01:16]} Nxf3 {[%emt 0:04:13]} 27. Qxf3 {[%emt 0:00:03]} Qa8 {[%emt 0:00:55]} 28. Rf1 {[%emt 0:16:33]} Qa2 {[%emt 0:02:27]} 29. Qd1 {[%emt 0:02:44]} f5 {[%emt 0:01:08]} 30. Kg1 {[%emt 0:03:27]} f4 {[%emt 0:14:32]} 31. gxf4 {[%emt 0:05:59]} Rxf4 {[%emt 0:00:06]} 32. Bg3 {[%emt 0:00:07]} Bd4+ {[%emt 0:01:34]} 33. Kh1 {[%emt 0:00:02]} Rxf1+ {[%emt 0:01:59]} 34. Qxf1 {[%emt 0:00:01]} Be5 {[%emt 0:01:03]} 35. Bxe5 {[%emt 0:01:53]} dxe5 {[%emt 0:00:01]} 36. Qf6 {[%emt 0:00:08]} Qb1+ {[%emt 0:02:07]} 37. Kg2 {[%emt 0:00:06]} Qc2+ {[%emt 0:00:07]} 38. Kg1 {[%emt 0:00:09]} Qd1+ {[%emt 0:00:45]} 39. Kf2 {[%emt 0:00:42]} Qd2+ {[%emt 0:00:39]} 40. Kg1 {[%emt 0:00:00]} Qe1+ {[%emt 0:00:00]} 41. Kg2 {[%emt 0:00:15]} Qe2+ {[%emt 0:06:51]} 1-0